[Event "Turkish Cup 2022"]
[Site "Sakarya"]
[Date "2022.03.28"]
[Round "5.23"]
[White "Yavuz, Efe Metehan"]
[Black "Onem, Cem"]
[Result "1-0"]
[ECO "D02"]
[WhiteElo "2054"]
[BlackElo "1793"]
[Annotator "RC"]
[PlyCount "100"]
[EventDate "2022.03.25"]
[EventType "swiss"]
[EventCountry "TUR"]
[SourceTitle "playchess.com"]
[Source "ChessBase"]
[SourceQuality "1"]
[TimeControl "5400+30"]

1. d4 {[%emt 0:01:00]} d5 {[%emt 0:06:00]} 2. Nf3 {[%emt 0:00:30]} Nf6 {[%emt 0:00:00]} 3. g3 {[%emt 0:00:30]} Bf5 {[%emt 0:01:00]} 4. Bg2 {[%emt 0:00:30]} h6 {[%emt 0:00:30]} 5. c4 {[%emt 0:01:30]} c6 {[%emt 0:00:30]} 6. Qb3 {[%emt 0:01:30]} Qb6 {[%emt 0:00:00]} 7. cxd5 {[%emt 0:06:30]} Qxb3 {[%emt 0:02:00]} 8. axb3 {[%emt 0:00:30]} cxd5 {[%emt 0:00:30]} 9. Ne5 {[%emt 0:04:30]} e6 {[%emt 0:03:30]} 10. Nc3 {[%emt 0:00:30]} Bb4 {[%emt 0:00:30]} 11. Bd2 {[%emt 0:05:30]} Na6 {[%emt 0:13:30]} 12. Nb5 {[%emt 0:07:30]} O-O {[%emt 0:04:30]} 13. Bc3 {[%emt 0:21:30]} Rfc8 {[%emt 0:10:30]} 14. O-O {[%emt 0:09:30]} Be7 {[%emt 0:10:30]} 15. Nc4 {[%emt 0:05:30]} Rc6 {[%emt 0:09:30]} 16. Ne5 {[%emt 0:03:30]} Rcc8 {[%emt 0:03:30]} 17. Rfc1 {[%emt 0:02:30]} Ne8 {[%emt 0:06:30]} 18. g4 {[%emt 0:05:30]} Bh7 {[%emt 0:00:30]} 19. Bf1 {[%emt 0:02:10]} f6 {[%emt 0:08:03]} 20. Nf3 {[%emt 0:00:11]} Nd6 {[%emt 0:00:26]} 21. e3 {[%emt 0:01:15]} Nxb5 {[%emt 0:04:03]} 22. Bxb5 {[%emt 0:00:01]} Nc7 {[%emt 0:00:00]} 23. Bd7 {[%emt 0:02:01]} Rd8 {[%emt 0:00:28]} 24. Ba4 {[%emt 0:00:00]} Bd6 {[%emt 0:03:38]} 25. b4 {[%emt 0:00:34]} Bd3 {[%emt 0:02:55]} 26. Ne1 {[%emt 0:03:28]} Be2 {[%emt 0:00:58]} 27. f3 {[%emt 0:00:25]} Bb5 {[%emt 0:00:40]} 28. Bd1 {[%emt 0:00:50]} Rdc8 {[%emt 0:00:33]} 29. Kf2 {[%emt 0:01:17]} Na6 {[%emt 0:00:48]} 30. Ra5 {[%emt 0:00:40]} Nc7 {[%emt 0:01:09]} 31. Rca1 {[%emt 0:01:16]} a6 {[%emt 0:00:11]} 32. Bd2 {[%emt 0:06:29]} Rab8 {[%emt 0:01:46]} 33. Rc1 {[%emt 0:01:10]} Na8 {[%emt 0:01:13]} 34. Raa1 {[%emt 0:00:36]} Nb6 {[%emt 0:00:31]} 35. h4 {[%emt 0:02:02]} Kf7 {[%emt 0:00:58]} 36. Bc2 {[%emt 0:01:15]} Rc7 {[%emt 0:01:53]} 37. Bd3 {[%emt 0:00:21]} Nc4 {[%emt 0:01:18]} 38. Bc3 {[%emt 0:00:07]} Be7 {[%emt 0:00:21]} 39. e4 {[%emt 0:01:15]} dxe4 {[%emt 0:02:09]} 40. fxe4 {[%emt 0:00:16]} Nd6 {[%emt 0:01:15]} 41. Bc2 {[%emt 0:00:28]} Rbc8 {[%emt 0:00:00]} 42. Ke3 {[%emt 0:01:31]} f5 {[%emt 0:01:13]} 43. gxf5 {[%emt 0:00:34]} Bxh4 {[%emt 0:00:44]} 44. Nf3 {[%emt 0:00:22]} Be7 {[%emt 0:00:10]} 45. fxe6+ {[%emt 0:00:44]} Kxe6 {[%emt 0:00:16]} 46. d5+ {[%emt 0:00:18]} Kf7 {[%emt 0:00:27]} 47. Bd3 {[%emt 0:01:57]} Nc4+ {[%emt 0:00:30]} 48. Bxc4 {[%emt 0:00:30]} Bxc4 {[%emt 0:00:30]} 49. Be5 {[%emt 0:00:16]} Bd8 {[%emt 0:01:41]} 50. Bxc7 {[%emt 0:00:09]} Rxc7 {[%emt 0:00:22]} 1-0

[Event "Turkish Cup 2022"]
[Site "Sakarya"]
[Date "2022.03.28"]
[Round "5.25"]
[White "Yasin, Hur"]
[Black "Melik, Enes"]
[Result "0-1"]
[ECO "C56"]
[WhiteElo "1931"]
[BlackElo "1592"]
[Annotator "RC"]
[PlyCount "74"]
[EventDate "2022.03.25"]
[EventType "swiss"]
[EventCountry "TUR"]
[SourceTitle "playchess.com"]
[Source "ChessBase"]
[SourceQuality "1"]
[TimeControl "5400+30"]

1. e4 {[%emt 0:09:00]} e5 {[%emt 0:01:00]} 2. Nf3 {[%emt 0:00:30]} Nc6 {[%emt 0:00:00]} 3. d4 {[%emt 0:00:30]} exd4 {[%emt 0:00:00]} 4. Bc4 {[%emt 0:00:00]} Nf6 {[%emt 0:00:30]} 5. O-O {[%emt 0:00:00]} Nxe4 {[%emt 0:00:30]} 6. Nc3 {[%emt 0:00:00]} Nxc3 {[%emt 0:05:30]} 7. bxc3 {[%emt 0:00:00]} d5 {[%emt 0:02:30]} 8. Bb5 {[%emt 0:00:30]} Be7 {[%emt 0:06:30]} 9. Ne5 {[%emt 0:00:30]} Bd7 {[%emt 0:15:30]} 10. Nxd7 {[%emt 0:27:30]} Qxd7 {[%emt 0:02:30]} 11. cxd4 {[%emt 0:00:00]} O-O {[%emt 0:01:30]} 12. Rb1 {[%emt 0:01:00]} Bf6 {[%emt 0:11:30]} 13. Rb3 {[%emt 0:01:30]} a6 {[%emt 0:00:30]} 14. Bd3 {[%emt 0:02:30]} g6 {[%emt 0:19:30]} 15. c3 {[%emt 0:01:30]} Na5 {[%emt 0:07:30]} 16. Rb2 {[%emt 0:00:30]} Rfe8 {[%emt 0:03:30]} 17. Qf3 {[%emt 0:01:30]} Bg7 {[%emt 0:01:01]} 18. h4 {[%emt 0:00:30]} h5 {[%emt 0:02:56]} 19. Qg3 {[%emt 0:03:30]} b5 {[%emt 0:09:45]} 20. f4 {[%emt 0:03:30]} Qd6 {[%emt 0:00:24]} 21. Qf3 {[%emt 0:01:30]} f5 {[%emt 0:01:33]} 22. Re2 {[%emt 0:03:30]} Rxe2 {[%emt 0:02:03]} 23. Qxe2 {[%emt 0:00:30]} Kf7 {[%emt 0:00:17]} 24. Re1 {[%emt 0:00:30]} Qd7 {[%emt 0:00:16]} 25. a4 {[%emt 0:06:30]} Nc4 {[%emt 0:01:52]} 26. Qa2 {[%emt 0:07:30]} Re8 {[%emt 0:01:46]} 27. Rxe8 {[%emt 0:00:30]} Qxe8 {[%emt 0:00:30]} 28. Kf2 {[%emt 0:00:00]} c5 {[%emt 0:01:05]} 29. axb5 {[%emt 0:08:00]} Qxb5 {[%emt 0:00:02]} 30. Be3 {[%emt 0:01:30]} a5 {[%emt 0:00:46]} 31. Kf3 {[%emt 0:02:06]} a4 {[%emt 0:01:08]} 32. Bc2 {[%emt 0:03:06]} a3 {[%emt 0:01:37]} 33. Bd3 {[%emt 0:02:33]} cxd4 {[%emt 0:00:29]} 34. cxd4 {[%emt 0:00:35]} Qb4 {[%emt 0:00:18]} 35. Bxc4 {[%emt 0:05:42]} dxc4 {[%emt 0:00:02]} 36. d5 {[%emt 0:03:28]} Qb3 {[%emt 0:01:05]} 37. Qd2 {[%emt 0:00:30]} Bc3 {[%emt 0:00:20]} 0-1

[Event "Turkish Cup 2022"]
[Site "Sakarya"]
[Date "2022.03.28"]
[Round "5.27"]
[White "Dolek, Gokalp Deniz"]
[Black "Ozcan, Ilker"]
[Result "0-1"]
[ECO "B33"]
[WhiteElo "1520"]
[BlackElo "2014"]
[Annotator "RC"]
[PlyCount "92"]
[EventDate "2022.03.25"]
[EventType "swiss"]
[EventCountry "TUR"]
[SourceTitle "playchess.com"]
[Source "ChessBase"]
[SourceQuality "1"]
[TimeControl "5400+30"]

1. e4 {[%emt 0:01:00]} c5 {[%emt 0:01:00]} 2. Nf3 {[%emt 0:00:00]} Nc6 {[%emt 0:00:30]} 3. d4 {[%emt 0:00:00]} cxd4 {[%emt 0:00:30]} 4. Nxd4 {[%emt 0:00:30]} Qb6 {[%emt 0:00:30]} 5. Nb3 {[%emt 0:00:30]} Nf6 {[%emt 0:00:30]} 6. Nc3 {[%emt 0:00:00]} e6 {[%emt 0:00:00]} 7. a3 {[%emt 0:00:00]} a6 {[%emt 0:00:00]} 8. Bf4 {[%emt 0:00:00]} e5 {[%emt 0:22:30]} 9. Be3 {[%emt 0:00:00]} Qc7 {[%emt 0:01:30]} 10. g4 {[%emt 0:00:00]} h6 {[%emt 0:02:30]} 11. h4 {[%emt 0:09:00]} d6 {[%emt 0:04:30]} 12. Bh3 {[%emt 0:01:30]} Be6 {[%emt 0:12:30]} 13. Qf3 {[%emt 0:04:30]} h5 {[%emt 0:14:30]} 14. g5 {[%emt 0:03:30]} Ng4 {[%emt 0:00:30]} 15. O-O-O {[%emt 0:09:30]} Rc8 {[%emt 0:01:30]} 16. Qe2 {[%emt 0:02:30]} Ne7 {[%emt 0:07:30]} 17. f4 {[%emt 0:01:30]} exf4 {[%emt 0:02:30]} 18. Bxf4 {[%emt 0:00:30]} Ng6 {[%emt 0:01:30]} 19. Bg3 {[%emt 0:02:30]} N6e5 {[%emt 0:06:48]} 20. Nd4 {[%emt 0:01:30]} Bc4 {[%emt 0:00:43]} 21. Qd2 {[%emt 0:03:30]} g6 {[%emt 0:00:43]} 22. Bxg4 {[%emt 0:13:30]} hxg4 {[%emt 0:01:38]} 23. h5 {[%emt 0:00:30]} gxh5 {[%emt 0:04:20]} 24. Nf5 {[%emt 0:00:30]} b5 {[%emt 0:01:51]} 25. Qd4 {[%emt 0:02:30]} a5 {[%emt 0:02:15]} 26. Rh2 {[%emt 0:03:30]} Rg8 {[%emt 0:05:34]} 27. Rf2 {[%emt 0:04:30]} Qc5 {[%emt 0:02:17]} 28. Bxe5 {[%emt 0:00:30]} Qxe5 {[%emt 0:00:47]} 29. Qxe5+ {[%emt 0:00:30]} dxe5 {[%emt 0:00:30]} 30. Nd5 {[%emt 0:00:30]} Bxd5 {[%emt 0:00:08]} 31. Rxd5 {[%emt 0:00:00]} Rc5 {[%emt 0:00:18]} 32. Rfd2 {[%emt 0:00:00]} Rxd5 {[%emt 0:01:01]} 33. Rxd5 {[%emt 0:00:00]} Rxg5 {[%emt 0:00:28]} 34. Rxe5+ {[%emt 0:00:00]} Kd7 {[%emt 0:00:03]} 35. Rd5+ {[%emt 0:01:30]} Kc7 {[%emt 0:00:36]} 36. Rd3 {[%emt 0:00:30]} Bg7 {[%emt 0:01:10]} 37. Kd2 {[%emt 0:02:30]} Be5 {[%emt 0:00:53]} 38. Ke2 {[%emt 0:00:30]} Bxb2 {[%emt 0:01:44]} 39. Kf2 {[%emt 0:00:30]} b4 {[%emt 0:01:00]} 40. a4 {[%emt 0:00:30]} Rg6 {[%emt 0:00:13]} 41. Kg3 {[%emt 0:00:30]} Be5+ {[%emt 0:00:40]} 42. Kg2 {[%emt 0:00:30]} Rc6 {[%emt 0:00:59]} 43. Ne3 {[%emt 0:00:00]} Kc8 {[%emt 0:00:00]} 44. Rd5 {[%emt 0:01:00]} Bf4 {[%emt 0:00:17]} 45. Nf5 {[%emt 0:00:30]} Rxc2+ {[%emt 0:00:03]} 46. Kf1 {[%emt 0:00:30]} b3 {[%emt 0:00:23]} 0-1

[Event "Turkish Cup 2022"]
[Site "Sakarya"]
[Date "2022.03.28"]
[Round "5.28"]
[White "Akin, Kadir"]
[Black "Avsar, Gediz"]
[Result "1-0"]
[ECO "A20"]
[WhiteElo "1964"]
[BlackElo "1506"]
[Annotator "RC"]
[PlyCount "56"]
[EventDate "2022.03.25"]
[EventType "swiss"]
[EventCountry "TUR"]
[SourceTitle "playchess.com"]
[Source "ChessBase"]
[SourceQuality "1"]
[TimeControl "5400+30"]

1. c4 {[%emt 0:10:00]} e5 {[%emt 0:01:00]} 2. a3 {[%emt 0:00:00]} g6 {[%emt 0:09:30]} 3. b4 {[%emt 0:00:00]} Bg7 {[%emt 0:01:30]} 4. Bb2 {[%emt 0:00:30]} Ne7 {[%emt 0:02:30]} 5. g3 {[%emt 0:00:30]} O-O {[%emt 0:00:30]} 6. Bg2 {[%emt 0:00:30]} d6 {[%emt 0:03:30]} 7. d3 {[%emt 0:00:30]} c6 {[%emt 0:00:30]} 8. Nd2 {[%emt 0:00:30]} f5 {[%emt 0:03:30]} 9. Qc2 {[%emt 0:04:30]} Nd7 {[%emt 0:02:30]} 10. Ngf3 {[%emt 0:00:30]} Nf6 {[%emt 0:02:30]} 11. c5 {[%emt 0:00:30]} e4 {[%emt 0:13:30]} 12. cxd6 {[%emt 0:07:30]} Qxd6 {[%emt 0:07:30]} 13. dxe4 {[%emt 0:00:30]} fxe4 {[%emt 0:04:30]} 14. Nxe4 {[%emt 0:00:30]} Nxe4 {[%emt 0:01:30]} 15. Bxg7 {[%emt 0:00:30]} Kxg7 {[%emt 0:00:30]} 16. Qxe4 {[%emt 0:00:30]} Bf5 {[%emt 0:00:30]} 17. Qc4 {[%emt 0:02:30]} a5 {[%emt 0:04:30]} 18. O-O {[%emt 0:08:30]} Rfd8 {[%emt 0:00:30]} 19. h4 {[%emt 0:05:30]} Be6 {[%emt 0:02:30]} 20. Qc3+ {[%emt 0:00:30]} Kg8 {[%emt 0:00:30]} 21. e4 {[%emt 0:02:30]} b5 {[%emt 0:02:30]} 22. Rfc1 {[%emt 0:04:30]} Ra6 {[%emt 0:04:30]} 23. Ng5 {[%emt 0:15:30]} Bc4 {[%emt 0:00:30]} 24. Bf1 {[%emt 0:00:30]} Bxf1 {[%emt 0:00:30]} 25. Rxf1 {[%emt 0:00:30]} Qd4 {[%emt 0:01:30]} 26. Qf3 {[%emt 0:00:30]} Qc4 {[%emt 0:07:30]} 27. Qf6 {[%emt 0:00:30]} Re8 {[%emt 0:00:30]} 28. Rfc1 {[%emt 0:00:30]} Qb3 {[%emt 0:00:30]} 1-0

[Event "Turkish Cup 2022"]
[Site "Sakarya"]
[Date "2022.03.28"]
[Round "5.29"]
[White "Er, Mira"]
[Black "Ibik, Halit Yavuz"]
[Result "0-1"]
[ECO "B91"]
[WhiteElo "1415"]
[BlackElo "1996"]
[Annotator "RC"]
[PlyCount "104"]
[EventDate "2022.03.25"]
[EventType "swiss"]
[EventCountry "TUR"]
[SourceTitle "playchess.com"]
[Source "ChessBase"]
[SourceQuality "1"]
[TimeControl "5400+30"]

1. e4 {[%emt 0:01:00]} c5 {[%emt 0:04:00]} 2. Nf3 {[%emt 0:00:30]} d6 {[%emt 0:00:30]} 3. d4 {[%emt 0:00:30]} cxd4 {[%emt 0:00:30]} 4. Nxd4 {[%emt 0:00:30]} Nf6 {[%emt 0:00:30]} 5. Nc3 {[%emt 0:00:30]} a6 {[%emt 0:00:30]} 6. g3 {[%emt 0:00:00]} e5 {[%emt 0:00:00]} 7. Nf3 {[%emt 0:00:00]} Be7 {[%emt 0:00:00]} 8. Bg2 {[%emt 0:00:00]} O-O {[%emt 0:02:30]} 9. O-O {[%emt 0:00:00]} b5 {[%emt 0:01:30]} 10. Nd5 {[%emt 0:00:00]} Nbd7 {[%emt 0:01:30]} 11. Nd2 {[%emt 0:05:00]} Nxd5 {[%emt 0:01:30]} 12. exd5 {[%emt 0:00:30]} Nb6 {[%emt 0:02:30]} 13. f4 {[%emt 0:04:30]} Bb7 {[%emt 0:24:30]} 14. fxe5 {[%emt 0:00:30]} Bxd5 {[%emt 0:01:30]} 15. exd6 {[%emt 0:05:30]} Qxd6 {[%emt 0:00:30]} 16. Nf3 {[%emt 0:14:30]} Rad8 {[%emt 0:01:30]} 17. c3 {[%emt 0:10:30]} Qc5+ {[%emt 0:04:30]} 18. Nd4 {[%emt 0:01:30]} b4 {[%emt 0:07:30]} 19. Be3 {[%emt 0:06:30]} Bxg2 {[%emt 0:00:30]} 20. Kxg2 {[%emt 0:01:30]} bxc3 {[%emt 0:06:30]} 21. bxc3 {[%emt 0:02:30]} Qxc3 {[%emt 0:04:30]} 22. Qb3 {[%emt 0:01:30]} Qxb3 {[%emt 0:07:30]} 23. axb3 {[%emt 0:02:30]} Nd5 {[%emt 0:00:30]} 24. Bf2 {[%emt 0:00:30]} Bf6 {[%emt 0:00:30]} 25. Ra5 {[%emt 0:06:30]} Nb4 {[%emt 0:01:30]} 26. Nf5 {[%emt 0:03:30]} Rfe8 {[%emt 0:01:30]} 27. Re1 {[%emt 0:01:30]} g6 {[%emt 0:03:30]} 28. Rxe8+ {[%emt 0:07:30]} Rxe8 {[%emt 0:00:30]} 29. Nd4 {[%emt 0:00:30]} Re4 {[%emt 0:04:17]} 30. Ra4 {[%emt 0:06:34]} Nd3 {[%emt 0:00:06]} 31. Bg1 {[%emt 0:02:39]} Ne1+ {[%emt 0:01:03]} 32. Kf1 {[%emt 0:01:31]} Bxd4 {[%emt 0:00:09]} 33. Rxd4 {[%emt 0:02:52]} Rxd4 {[%emt 0:00:06]} 34. Bxd4 {[%emt 0:00:24]} Nf3 {[%emt 0:00:30]} 35. Bc5 {[%emt 0:00:06]} Nd2+ {[%emt 0:05:18]} 36. Ke2 {[%emt 0:00:53]} Nxb3 {[%emt 0:00:30]} 37. Bb6 {[%emt 0:00:00]} f5 {[%emt 0:00:04]} 38. Kd3 {[%emt 0:01:02]} a5 {[%emt 0:03:24]} 39. Kc3 {[%emt 0:00:43]} a4 {[%emt 0:00:54]} 40. Be3 {[%emt 0:01:21]} Kf7 {[%emt 0:01:30]} 41. Kb4 {[%emt 0:00:43]} Ke6 {[%emt 0:00:47]} 42. Kxa4 {[%emt 0:00:50]} Na1 {[%emt 0:00:02]} 43. Kb5 {[%emt 0:00:25]} Kd5 {[%emt 0:00:20]} 44. Kb6 {[%emt 0:00:35]} Nc2 {[%emt 0:00:48]} 45. Bf4 {[%emt 0:00:53]} Nd4 {[%emt 0:00:07]} 46. Kb7 {[%emt 0:00:10]} Ke4 {[%emt 0:02:13]} 47. Kc8 {[%emt 0:00:22]} Nf3 {[%emt 0:00:42]} 48. h3 {[%emt 0:00:18]} g5 {[%emt 0:03:28]} 49. Bd6 {[%emt 0:00:46]} f4 {[%emt 0:00:13]} 50. gxf4 {[%emt 0:01:26]} gxf4 {[%emt 0:00:30]} 51. Kd8 {[%emt 0:00:30]} Ng5 {[%emt 0:00:30]} 52. h4 {[%emt 0:00:30]} Nf7+ {[%emt 0:00:17]} 0-1

[Event "Turkish Cup 2022"]
[Site "Sakarya"]
[Date "2022.03.28"]
[Round "5.30"]
[White "Ozel, Baran Kemal"]
[Black "Kavri, Yusuf Eren"]
[Result "0-1"]
[ECO "B57"]
[WhiteElo "1401"]
[BlackElo "1886"]
[Annotator "NA RC"]
[PlyCount "68"]
[EventDate "2022.03.25"]
[EventType "swiss"]
[EventCountry "TUR"]
[SourceTitle "playchess.com"]
[Source "ChessBase"]
[SourceQuality "1"]
[TimeControl "5400+30"]

1. e4 {[%emt 0:01:00]} c5 {[%emt 0:01:00]} 2. Nf3 {[%emt 0:00:00]} Nc6 {[%emt 0:00:30]} 3. d4 {[%emt 0:00:00]} cxd4 {[%emt 0:00:30]} 4. Nxd4 {[%emt 0:00:30]} Nf6 {[%emt 0:00:30]} 5. Nc3 {[%emt 0:00:00]} d6 {[%emt 0:00:00]} 6. Bc4 {[%emt 0:06:00]} Qb6 {[%emt 0:00:00]} 7. Be3 {[%emt 0:10:30]} Qxb2 {[%emt 0:00:00]} 8. Ndb5 {[%emt 0:23:30]} Qb4 {[%emt 0:00:00]} 9. Bd3 {[%emt 0:01:30]} Qa5 {[%emt 0:00:30]} 10. Qd2 {[%emt 0:01:30]} (10. Bd2 $1 $15 Qd8 11. Nd5 Nxd5 12. exd5) 10... a6 {[%emt 0:09:30]} 11. Nd4 {[%emt 0:03:30]} e6 {[%emt 0:07:30]} 12. O-O {[%emt 0:02:30]} Be7 {[%emt 0:00:30]} 13. f4 {[%emt 0:16:30]} Bd7 {[%emt 0:09:30]} 14. Nb3 {[%emt 0:06:30]} Qc7 {[%emt 0:01:30]} 15. Na4 {[%emt 0:01:30]} b5 {[%emt 0:03:30]} 16. Nb6 {[%emt 0:03:30]} Rb8 {[%emt 0:00:30]} 17. Nxd7 {[%emt 0:00:00]} Nxd7 {[%emt 0:00:30]} 18. f5 {[%emt 0:01:00]} Bf6 {[%emt 0:07:30]} 19. g4 {[%emt 0:01:31]} Bxa1 {[%emt 0:04:30]} 20. Rxa1 {[%emt 0:03:08]} Nde5 {[%emt 0:01:30]} 21. Be2 {[%emt 0:00:22]} Nc4 {[%emt 0:16:30]} 22. Bxc4 {[%emt 0:00:42]} bxc4 {[%emt 0:00:30]} 23. Nd4 {[%emt 0:00:00]} Nxd4 {[%emt 0:00:30]} 24. Bxd4 {[%emt 0:00:35]} e5 {[%emt 0:00:30]} 25. Be3 {[%emt 0:00:30]} Qc6 {[%emt 0:00:00]} 26. Qg2 {[%emt 0:02:10]} Rb2 {[%emt 0:03:00]} 27. g5 {[%emt 0:00:28]} Qa4 {[%emt 0:01:30]} 28. f6 {[%emt 0:04:22]} g6 {[%emt 0:12:30]} 29. Qh3 {[%emt 0:01:40]} Qd7 {[%emt 0:00:00]} 30. Qg2 {[%emt 0:00:35]} O-O $19 {[%emt 0:01:00]} 31. h4 {[%emt 0:03:13]} h5 {[%emt 0:01:10]} 32. gxh6 {[%emt 0:00:38]} Kh7 {[%emt 0:00:01]} 33. Kh1 {[%emt 0:01:31]} Qb7 {[%emt 0:01:48]} 34. h5 {[%emt 0:01:02]} Rb1+ {[%emt 0:00:29]} 0-1

[Event "Turkish Cup 2022"]
[Site "Sakarya"]
[Date "2022.03.28"]
[Round "5.34"]
[White "Canbulan, Arda"]
[Black "Unsal, Gorkem"]
[Result "1-0"]
[ECO "B32"]
[WhiteElo "1867"]
[BlackElo "1672"]
[Annotator "NA RC"]
[PlyCount "161"]
[EventDate "2022.03.25"]
[EventType "swiss"]
[EventCountry "TUR"]
[SourceTitle "playchess.com"]
[Source "ChessBase"]
[SourceQuality "1"]
[TimeControl "5400+30"]

1. e4 {[%emt 0:01:00]} c5 {[%emt 0:01:00]} 2. Nf3 {[%emt 0:00:30]} Nc6 {[%emt 0:00:30]} 3. d4 {[%emt 0:00:30]} cxd4 {[%emt 0:00:30]} 4. Nxd4 {[%emt 0:00:30]} e5 {[%emt 0:00:00]} 5. Nb5 {[%emt 0:00:00]} d6 {[%emt 0:00:00]} 6. N1c3 {[%emt 0:00:00]} a6 {[%emt 0:00:00]} 7. Na3 {[%emt 0:00:30]} Be7 {[%emt 0:00:00]} 8. Nc4 {[%emt 0:00:00]} b5 {[%emt 0:07:30]} 9. Ne3 {[%emt 0:00:00]} Nf6 {[%emt 0:03:30]} 10. Bd3 {[%emt 0:00:00]} Be6 {[%emt 0:00:30]} 11. O-O {[%emt 0:03:00]} O-O {[%emt 0:00:00]} 12. a3 {[%emt 0:06:30]} Rc8 {[%emt 0:04:00]} 13. g4 {[%emt 0:08:30]} g6 {[%emt 0:04:30]} 14. Ncd5 {[%emt 0:09:30]} Nb8 {[%emt 0:21:30]} 15. a4 {[%emt 0:04:30]} Nxd5 {[%emt 0:13:30]} 16. exd5 {[%emt 0:02:30]} Bd7 {[%emt 0:00:00]} 17. axb5 {[%emt 0:00:30]} axb5 {[%emt 0:00:00]} 18. Qe2 {[%emt 0:04:30]} Qe8 {[%emt 0:05:30]} 19. f4 {[%emt 0:07:30]} Bd8 {[%emt 0:06:30]} 20. Qg2 {[%emt 0:04:30]} f6 {[%emt 0:05:30]} 21. f5 {[%emt 0:02:30]} g5 {[%emt 0:05:30]} 22. Kh1 {[%emt 0:01:30]} Rf7 {[%emt 0:00:30]} 23. Re1 {[%emt 0:05:30]} Qe7 {[%emt 0:03:28]} 24. Nf1 {[%emt 0:01:30]} Be8 {[%emt 0:00:33]} 25. Be3 {[%emt 0:00:30]} Qf8 {[%emt 0:02:29]} 26. Ra8 {[%emt 0:02:30]} Rb7 {[%emt 0:02:00]} 27. Ng3 {[%emt 0:01:30]} Bf7 {[%emt 0:00:36]} 28. Rea1 {[%emt 0:02:30]} Qe7 {[%emt 0:02:07]} (28... h6 $16 29. Qf3 Qe7) 29. b3 {[%emt 0:02:30]} Qc7 {[%emt 0:01:43]} (29... h6 $16 30. Ne4 Kg7) 30. c4 {[%emt 0:00:30]} ({White should try} 30. R8a7 $18 Qd7 31. Ne4) 30... Nd7 {[%emt 0:01:01]} 31. Ne4 {[%emt 0:02:30]} ({Don't do} 31. cxb5 $6 Rxa8 32. Rxa8 Rb8 $14) 31... Be7 {[%emt 0:01:46]} (31... Rxa8 $16 32. Rxa8 bxc4 33. bxc4 Rb8) 32. h4 {[%emt 0:04:30]} h6 {[%emt 0:00:32]} 33. Qh3 {[%emt 0:01:30]} Kg7 {[%emt 0:00:21]} 34. hxg5 {[%emt 0:02:30]} hxg5 {[%emt 0:01:57]} 35. Kg2 {[%emt 0:04:33]} Rxa8 {[%emt 0:02:30]} 36. Rxa8 $2 {[%emt 0:00:32]} (36. Rh1 Bh5 37. Qxh5 Ra2+ 38. Kg3) 36... Bf8 $2 {[%emt 0:00:00] [#]} (36... Rb8 $18 37. Ra7 Qd8 38. Bxg5 fxg5 39. f6+ Bxf6 40. Nxd6 e4) 37. Nxg5 $1 {[%emt 0:04:42]} fxg5 {[%emt 0:01:24]} 38. Bxg5 {[%emt 0:00:04]} Rb8 {[%emt 0:01:24]} 39. Rxb8 {[%emt 0:03:43]} Qxb8 {[%emt 0:00:30]} 40. f6+ {[%emt 0:00:00]} Nxf6 {[%emt 0:00:14]} 41. Qh6+ {[%emt 0:00:17]} Kg8 {[%emt 0:00:30]} 42. Qxf6 {[%emt 0:00:00]} Qe8 $2 {[%emt 0:01:08]} (42... bxc4 43. bxc4 Qb7) 43. Qf5 {[%emt 0:01:20]} Bg7 {[%emt 0:00:35]} 44. Qh7+ {[%emt 0:00:30]} Kf8 {[%emt 0:00:00]} 45. Bh6 {[%emt 0:00:27]} Bxh6 {[%emt 0:00:03]} 46. Qxh6+ {[%emt 0:00:30]} Ke7 {[%emt 0:00:00]} 47. g5 {[%emt 0:00:50]} bxc4 {[%emt 0:00:35]} 48. Qf6+ {[%emt 0:02:17]} Kd7 {[%emt 0:00:04]} 49. bxc4 {[%emt 0:00:00]} Kc7 {[%emt 0:01:28]} 50. g6 {[%emt 0:00:27]} Bg8 {[%emt 0:00:02]} 51. Bf5 {[%emt 0:00:30]} Qd8 {[%emt 0:00:37]} 52. Qxd8+ {[%emt 0:01:16]} Kxd8 {[%emt 0:00:05]} 53. Be6 {[%emt 0:01:01]} Ke7 {[%emt 0:00:30]} 54. Bxg8 {[%emt 0:00:30]} Kf6 {[%emt 0:00:30]} 55. Bf7 {[%emt 0:00:30]} Kg7 {[%emt 0:00:30]} 56. Kf3 {[%emt 0:00:30]} Kf6 {[%emt 0:00:30]} 57. Ke4 {[%emt 0:00:00]} Kg7 {[%emt 0:00:00]} 58. Kf5 {[%emt 0:00:00]} e4 {[%emt 0:00:00]} 59. Kxe4 {[%emt 0:00:00]} Kf6 {[%emt 0:00:00]} 60. Kf4 {[%emt 0:00:00]} Kg7 {[%emt 0:00:00]} 61. Kf5 {[%emt 0:00:21]} Kf8 {[%emt 0:00:00]} 62. Ke6 {[%emt 0:00:00]} Kg7 {[%emt 0:00:00]} 63. Kxd6 {[%emt 0:00:06]} Kf6 {[%emt 0:00:03]} 64. c5 {[%emt 0:00:00]} Kg7 {[%emt 0:00:00]} 65. c6 {[%emt 0:00:00]} Kf6 {[%emt 0:00:05]} 66. c7 {[%emt 0:00:24]} Kg7 {[%emt 0:00:00]} 67. Ke6 {[%emt 0:00:35]} Kh6 {[%emt 0:00:00]} 68. c8=R {[%emt 0:00:30]} Kg7 {[%emt 0:00:06]} 69. Rg8+ {[%emt 0:00:30]} Kh6 {[%emt 0:00:30]} 70. d6 {[%emt 0:00:30]} Kg5 {[%emt 0:00:30]} 71. d7 {[%emt 0:00:30]} Kh6 {[%emt 0:00:30]} 72. d8=R {[%emt 0:00:30]} Kg5 {[%emt 0:00:30]} 73. Rh8 {[%emt 0:00:30]} Kf4 {[%emt 0:00:30]} 74. Rd5 {[%emt 0:00:30]} Ke4 {[%emt 0:00:00]} 75. Rh4+ {[%emt 0:00:00]} Ke3 {[%emt 0:00:00]} 76. g7 {[%emt 0:00:00]} Kf3 {[%emt 0:00:00]} 77. Rd3+ {[%emt 0:00:00]} Ke2 {[%emt 0:00:00]} 78. Ra3 {[%emt 0:00:00]} Kf2 {[%emt 0:00:00]} 79. Rb4 {[%emt 0:00:00]} Ke2 {[%emt 0:00:00]} 80. Rb2+ {[%emt 0:00:16]} Kd1 {[%emt 0:00:00]} 81. Ra1# {[%emt 0:00:08]} 1-0